Cogmind - Beta 10.2 @@@ ROGUE MODE // 2021.06.05 @ 10:21:34 Player: Plexion Result: Destroyed by M3-3YE(z) with Makeshift Laser Performance ------------- Evolutions (4) 2000 Regions Visited (14) 2800 Robots Destroyed (150) 750 Value Destroyed (4992) 4992 Prototype IDs (32) 640 Alien Tech Used (0) 0 Bonus (557) 557 TOTAL SCORE: 11739 Bonus ------- Follower Combat Kills 37 Aligned with FarCom 300 Met Data Miner 300 Friendly Fire -80 Cogmind --------- Core Integrity 0/850 Matter 38/300 Energy 100/100 System Corruption 0% Temperature Cool (9) Movement Core (1600) Ox31 Location -6/Zion Parts ------- > --- POWER (2) -------- (None) > --- PROPULSION (4) --- (None) > --- UTILITY (6) ------ High-capacity Storage Unit High-capacity Storage Unit High-capacity Storage Unit Improved Armor Integrity Analyzer > --- WEAPON (3) ------- (None) > --- INVENTORY (28) --- Improved Particle Charger Relay Coupler [Programmer] (68) Relay Coupler [Programmer] (82) Relay Coupler [Programmer] (54) Relay Coupler [Programmer] (63) Relay Coupler [Programmer] (59) Proton Cannon Latent Energy Streamer Flak Gun Proton Missile Launcher Improved Proton Missile Launcher Power Sword CR-A16's Pointy Stick Peak State ------------ > --- POWER ------------ Improved Deuterium Engine Light Angular Momentum Engine > --- PROPULSION ------- Light Treads Light Treads Armored Treads Medium Treads > --- UTILITY ---------- High-capacity Storage Unit High-capacity Storage Unit High-capacity Storage Unit Improved Armor Integrity Analyzer Improved Heavy Armor Plating > --- WEAPON ----------- Gauss Rifle Heavy Machine Gun Power Sword > --- INVENTORY -------- Medium Treads Improved Particle Charger Improved Light Armor Plating Improved Medium Armor Plating Improved Medium Armor Plating Medium Reflective Plating Relay Coupler [Programmer] Relay Coupler [Programmer] Relay Coupler [Programmer] Relay Coupler [Programmer] Relay Coupler [Programmer] Lightning Gun Lightning Gun Improved EM Pulse Cannon Proton Cannon Latent Energy Streamer Heavy Assault Rifle Heavy Assault Rifle Gauss Rifle Flak Gun Heavy Machine Gun Proton Missile Launcher Improved Proton Missile Launcher Plasma Cutter Makeshift Hammer CR-A16's Pointy Stick [Rating: 62] Favorites ----------- Power Improved Deuterium Engine Engine Improved Deuterium Engine Power Core Nuclear Core Propulsion Light Treads Treads Light Treads Leg Makeshift Leg Utility High-capacity Storage Unit Storage High-capacity Storage Unit Processor Target Analyzer Protection Improved Medium Armor Plating Weapon Gauss Rifle Energy Gun Small Laser Energy Cannon Latent Energy Streamer Ballistic Gun Gauss Rifle Ballistic Cannon Light Cannon Launcher Advanced EMP Blaster Special Weapon Plasma Cutter Impact Weapon Makeshift Hammer Slashing Weapon Power Sword Piercing Weapon CR-A16's Pointy Stick Build | -11 -10 -10 -10 -9 -8 -7 -7 -7 -7 -6 -6 -6 -6 -6 ------- Run | Scr Mat Min Exi Min Mat Fac Low Low Dat Pro Fac Low Low Zio Slots Evolved 8 | . . . . . 4 2 . . . . 2 . . . Power 1 | . . . . . . . . . . . 1 . . . Propulsion 2 | . . . . . 1 1 . . . . . . . . Utility 4 | . . . . . 2 1 . . . . 1 . . . Weapon 1 | . . . . . 1 . . . . . . . . . Parts Attached 126 | 6 17 . 2 . 11 12 3 5 4 9 19 1 6 31 Power 8 | 1 3 . . . 2 . . . . . 2 . . . Engine 7 | 1 3 . . . 1 . . . . . 2 . . . Core 1 | . . . . . 1 . . . . . . . . . Reactor . | . . . . . . . . . . . . . . . Propulsion 24 | 2 4 . . . 2 4 1 . . 2 3 . 1 5 Treads 23 | 2 4 . . . 2 4 1 . . 2 3 . 1 4 Leg 1 | . . . . . . . . . . . . . . 1 Wheel . | . . . . . . . . . . . . . . . Hover . | . . . . . . . . . . . . . . . Flight . | . . . . . . . . . . . . . . . Utility 28 | 1 4 . 2 . 2 5 2 2 . . 3 . 1 6 Device . | . . . . . . . . . . . . . . . Storage 9 | 1 4 . 2 . . . 1 . . . . . . 1 Processor 2 | . . . . . . 1 . . . . . . 1 . Hackware . | . . . . . . . . . . . . . . . Protection 17 | . . . . . 2 4 1 2 . . 3 . . 5 Artifact . | . . . . . . . . . . . . . . . Weapon 66 | 2 6 . . . 5 3 . 3 4 7 11 1 4 20 Energy Gun 6 | . 1 . . . 1 . . . . . . . . 4 Energy Cannon 3 | . . . . . . . . . 1 . . . . 2 Ballistic Gun 35 | 2 3 . . . 2 3 . 1 3 3 8 . 3 7 Ballistic Cannon 2 | . 2 . . . . . . . . . . . . . Launcher 12 | . . . . . 2 . . 2 . 4 1 1 1 1 Special Weapon 1 | . . . . . . . . . . . . . . 1 Impact Weapon 1 | . . . . . . . . . . . . . . 1 Slashing Weapon 5 | . . . . . . . . . . . 2 . . 3 Piercing Weapon 1 | . . . . . . . . . . . . . . 1 Special Melee Weapon . | . . . . . . . . . . . . . . . Unidentified Prototypes 1 | . . . . . 1 . . . . . . . . . Parts Lost 38 | . 3 . . . . 2 1 . . 3 3 . 1 25 Power 4 | . 1 . . . . . . . . . 1 . . 2 Propulsion 11 | . . . . . . . . . . 2 2 . . 7 Utility 9 | . . . . . . 2 1 . . . . . . 6 Weapon 14 | . 2 . . . . . . . . 1 . . 1 10 Highest Loss Streak 22 | . 3 . . . . 1 1 . . 1 1 . 1 22 Average Slot Usage (%) 94 | . 93 100 100 100 99 95 99 100 88 100 87 93 92 90 Engine 9 | . 13 14 14 14 5 7 7 7 7 7 8 13 13 12 Treads 27 | . 27 28 28 28 27 30 30 30 30 30 23 26 26 24 Storage 17 | . 22 28 28 28 18 15 16 23 23 23 14 13 13 15 Processor 4 | . . . . . . 3 7 7 7 7 6 6 6 6 Protection 10 | . . . . . 18 15 13 7 7 7 12 13 13 11 Ballistic Gun 13 | . 9 . . . 6 14 23 21 8 19 17 13 14 13 Ballistic Cannon 5 | . 13 28 28 28 18 7 . . . . . . . . Naked Turns . | . . . . . . . . . . . . . . . Heaviest Build 142 | 13 43 43 75 75 97 100 105 111 111 112 119 119 119 142 Greatest Support 102 | 40 40 40 40 40 60 94 102 102 102 102 94 80 88 96 Greatest Overweight (x) 36 | 1 1 1 1 1 1 1 1 1 1 1 1 1 1 36 Average Overweight (x) . | . . 1 1 1 1 . . 1 . 1 1 1 1 1 Largest Inventory Capacity 28 | 6 16 16 20 20 20 20 26 26 26 26 26 20 20 28 Average Capacity 20 | 5 10 16 18 20 20 20 21 26 26 26 20 20 20 22 Most Carried 26 | 2 16 16 18 18 20 20 22 26 26 20 20 20 20 26 Average Carried 18 | 1 7 16 17 18 18 19 19 24 22 19 19 20 19 20 Final Capacity 28 | 6 16 16 20 20 20 20 26 26 26 26 20 20 20 28 Final Carried 26 | 2 16 16 18 18 20 20 22 26 20 18 20 20 19 13 Class Distribution -------------------- 29% | Hauler-Mutant 22% | Hauler-Tank 13% | Scavenger-Mutant 13% | Scavenger-Tank 12% | Mutant 8% | Hauler-Gunner Dominant Class ---------------- Mutant | -10/Materials Mutant | -10/Mines Hauler-Mutant | -10/Exiles Hauler-Mutant | -9/Mines Hauler-Tank | -8/Materials Hauler-Tank | -7/Factory Hauler-Tank | -7/Lower Caves Hauler-Gunner | -7/Lower Caves Hauler-Mutant | -7/Data Miner Hauler-Gunner | -6/Proximity Caves Scavenger-Tank | -6/Factory Scavenger-Mutant | -6/Lower Caves Scavenger-Mutant | -6/Lower Caves Hauler-Mutant | -6/Zion Resources | -11 -10 -10 -10 -9 -8 -7 -7 -7 -7 -6 -6 -6 -6 -6 ----------- Run | Scr Mat Min Exi Min Mat Fac Low Low Dat Pro Fac Low Low Zio Matter Collected 3892 | 260 382 . . . 517 498 373 409 19 289 349 162 279 355 Remotely . | . . . . . . . . . . . . . . . Salvage Created 6197 | . 565 . . . 368 824 352 1051 . 961 643 279 610 544 Parts 300 | . 36 . . . 28 39 17 31 . 34 46 7 31 31 Haulers Intercepted 6 | . 2 . . . 4 . . . . . . . . . Recyclers Shooed 4 | . . . . . 1 3 . . . . . . . . Parts Field Recycled . | . . . . . . . . . . . . . . . Retrieved Matter . | . . . . . . . . . . . . . . . Parts Self-Destructed 58 | . . . . . . . 17 17 . 5 . 1 18 . Prevented 54 | . . . . . . . . 13 . 28 . 6 7 . Kills | -11 -10 -10 -10 -9 -8 -7 -7 -7 -7 -6 -6 -6 -6 -6 ------- Run | Scr Mat Min Exi Min Mat Fac Low Low Dat Pro Fac Low Low Zio Combat Hostiles Destroyed 111 | . 14 . . . 9 10 6 20 . 16 12 4 15 5 Melee 1 | . . . . . . . . . . . 1 . . . Guns 44 | . 13 . . . 1 8 6 5 . . 7 . 3 1 Cannons 4 | . 1 . . . 1 2 . . . . . . . . AOE 46 | . . . . . 7 . . 12 . 10 4 1 9 3 Classes Destroyed 18 | . 7 . . . 1 3 2 1 . . . . 1 3 Worker 5 | . 1 . . . 1 1 . . . . 2 . . . Builder 3 | . . . . . . 1 . . . . 2 . . . Hauler 6 | . 2 . . . 4 . . . . . . . . . Recycler 6 | . 1 . . . 1 4 . . . . . . . . Minesweeper 2 | . . . . . . . 1 1 . . . . . . Operator 1 | . 1 . . . . . . . . . . . . . Watcher 3 | . 1 . . . . 2 . . . . . . . . Swarmer 32 | . 6 . . . 6 . . 3 . 3 4 . 10 . Grunt 45 | . 8 . . . 1 . 5 12 . 11 . 4 4 . Brawler 4 | . . . . . . . . 3 . 1 . . . . Duelist 3 | . . . . . . . 1 1 . 1 . . . . Sentry 12 | . . . . . 2 4 . 1 . . 5 . . . Hunter 3 | . . . . . . 3 . . . . . . . . Programmer 6 | . . . . . . 3 . . . . 3 . . . Behemoth 1 | . . . . . . . . . . . . . 1 . Zionite 13 | . . . . . . . . . . . . . . 13 Wasp 1 | . . . . . . . . . . . . . . 1 Thug 2 | . . . . . . . . . . . . . . 2 Fireman 1 | . . . . . . . . . . . . . . 1 Mutant 1 | . . . . . . . . . . . . . . 1 Best Kill Streak 9 | . 5 . . . 5 5 3 9 . 4 8 4 3 6 Combat Bots Only 9 | . 5 . . . 5 2 3 9 . 4 5 4 3 4 Max Kills in Single Turn 5 | . 1 . . . 2 2 1 3 . 2 5 1 2 1 Gunslinging . | . . . . . . . . . . . . . . . Exploded 4 | . . . . . 2 . . 3 . 2 4 1 2 1 Melee 1 | . . . . . . . . . . . 1 . . . Uniques/NPCs Destroyed . | . . . . . . . . . . . . . . . Combat | -11 -10 -10 -10 -9 -8 -7 -7 -7 -7 -6 -6 -6 -6 -6 -------- Run | Scr Mat Min Exi Min Mat Fac Low Low Dat Pro Fac Low Low Zio Damage Taken 10033 | . 509 . . . 268 1162 377 721 . 755 649 39 1218 4335 Core 1275 | . 72 . . . . 57 47 116 . 121 10 . 111 741 Absorbed by Shields . | . . . . . . . . . . . . . . . Core Remaining (%) 80 | 100 . . . 71 100 . . . . 51 . . . . Volleys Fired 342 | . 63 . . . 32 51 20 27 1 27 22 4 25 70 Largest 3 | . 2 . . . 3 3 3 3 1 1 3 1 3 3 Hottest 154 | . 75 . . . 110 93 84 84 60 39 86 36 84 154 Shots Fired 752 | . 124 . . . 79 152 57 52 3 27 63 4 44 147 Gun 529 | . 99 . . . 22 94 57 39 2 . 62 . 28 126 Cannon 142 | . 25 . . . 50 58 . . 1 . . . . 8 Launcher 76 | . . . . . 7 . . 13 . 27 1 4 16 8 Special 5 | . . . . . . . . . . . . . . 5 Kinetic 599 | . 105 . . . 68 152 57 39 2 . 62 . 28 86 Thermal 24 | . 19 . . . . . . . . . . . . 5 Explosive 7 | . . . . . 7 . . . . . . . . . Electromagnetic 122 | . . . . . 4 . . 13 1 27 1 4 16 56 Robot Hit Streak 28 | . 17 . . . 7 19 9 12 . 5 12 9 10 28 Robot Miss Streak 7 | . 2 . . . 3 2 3 1 1 2 7 1 6 2 Penetration Max 1 | . . . . . . . 1 1 . . 1 . . . Secondary Targets 6 | . . . . . . . 2 1 . . 1 . . 2 Max Gunslinging Chain 1 | . . . . . . . 1 1 . . 1 . . 1 Shots Hit Robots 558 | . 89 . . . 42 114 42 36 . 15 58 2 30 130 Core Hits 278 | . 29 . . . 25 35 14 36 . 25 45 5 28 36 Critical Hits 12 | . . . . . . 3 2 3 . . 2 . . 2 Critical Kills 3 | . . . . . . 1 1 . . . 1 . . . Critical Parts Destroyed 8 | . . . . . . 2 1 3 . . 1 . . 1 Melee Attacks 391 | . . . . . . . . . . . 29 . . 362 Impact 288 | . . . . . . . . . . . . . . 288 Slashing 40 | . . . . . . . . . . . 29 . . 11 Piercing 63 | . . . . . . . . . . . . . . 63 Sneak Attacks . | . . . . . . . . . . . . . . . Combat Hostiles . | . . . . . . . . . . . . . . . Follow-up Attacks . | . . . . . . . . . . . . . . . Damage Inflicted 14292 | . 1063 . . . 1003 2023 859 1905 . 1422 1535 409 1342 2731 Guns 7130 | . 762 . . . 164 1323 859 549 . . 1050 . 410 2013 Cannons 1453 | . 301 . . . 404 700 . . . . . . . 48 Explosions 5335 | . . . . . 435 . . 1356 . 1422 388 409 932 393 Melee 318 | . . . . . . . . . . . 97 . . 221 Ramming . | . . . . . . . . . . . . . . . Kinetic 7878 | . 904 . . . 537 2023 859 549 . . 1050 . 410 1546 Thermal 1022 | . 159 . . . . . . 289 . . 236 . 214 124 Explosive 435 | . . . . . 435 . . . . . . . . . Electromagnetic 4639 | . . . . . 31 . . 1067 . 1422 152 409 718 840 Impact . | . . . . . . . . . . . . . . . Slashing 318 | . . . . . . . . . . . 97 . . 221 Piercing . | . . . . . . . . . . . . . . . Highest Corruption 10 | . . . . . . 4 4 5 8 10 4 4 5 5 Average Corruption 4 | . . . . . . 3 4 4 6 8 3 4 4 5 Corruption Purged . | . . . . . . . . . . . . . . . Effects 131 | . . . . . . 17 25 18 4 23 19 7 16 2 Message Errors 38 | . . . . . . 6 6 5 . 7 5 2 6 1 Matter Fused 24 | . . . . . . 1 4 4 2 4 1 3 4 1 Heat Flow Errors 13 | . . . . . . . 2 2 . 2 4 1 2 . Energy Discharges 17 | . . . . . . 3 5 4 . 1 4 . . . Data Loss (minor) 13 | . . . . . . 2 1 1 . 3 4 . 2 . Data Loss (major) 2 | . . . . . . . . . . 2 . . . . Misfires 3 | . . . . . . . . . 2 . . . 1 . Misdirections 2 | . . . . . . . . . . 2 . . . . Targeting Errors 14 | . . . . . . 4 4 2 . 2 . 1 1 . Weapon Failures 5 | . . . . . . 1 3 . . . 1 . . . Overload Shots . | . . . . . . . . . . . . . . . Overflow Damage 166 | . . . . . 21 14 . 9 . 31 14 . 77 . Projectiles 23 | . . . . . 9 14 . . . . . . . . Explosions 143 | . . . . . 12 . . 9 . 31 14 . 77 . Melee . | . . . . . . . . . . . . . . . Knockbacks 14 | . 5 . . . 1 8 . . . . . . . . Impact . | . . . . . . . . . . . . . . . Kinetic 14 | . 5 . . . 1 8 . . . . . . . . Secondary . | . . . . . . . . . . . . . . . Self-Inflicted Damage 477 | . . . . . 16 . . 203 . 98 . . 160 . Shots 26 | . . . . . 1 . . 10 . 5 . . 10 . Rammed . | . . . . . . . . . . . . . . . Targets Rammed . | . . . . . . . . . . . . . . . Kicked . | . . . . . . . . . . . . . . . Crushed . | . . . . . . . . . . . . . . . Highest Temperature 344 | . 32 . . . 246 159 235 256 10 253 270 160 214 344 Average Temperature 71 | . 10 . . . 75 52 59 70 7 82 53 70 83 127 Received Heat Transfer 2012 | . 204 . . . 90 120 198 117 . 228 78 18 168 791 Effects 8 | . . . . . 3 . . 2 . . . . . 3 Energy Bleed 1 | . . . . . . . . . . . . . . 1 Interference 5 | . . . . . 3 . . 2 . . . . . . Matter Decay 1 | . . . . . . . . . . . . . . 1 Damage (minor) 1 | . . . . . . . . . . . . . . 1 Siege Activations . | . . . . . . . . . . . . . . . Robots Corrupted 17 | . . . . . . . . 3 . 6 . 3 3 2 Combat Hostiles 16 | . . . . . . . . 3 . 6 . 3 3 1 Parts Fried 25 | . . . . . . . . 4 . 8 . 4 3 6 Impact Corruptions . | . . . . . . . . . . . . . . . Robots Melted . | . . . . . . . . . . . . . . . Combat Hostiles . | . . . . . . . . . . . . . . . Parts Melted 1 | . . . . . . . . . . . . . . 1 Heat Transferred 1107 | . 350 . . . . . . 350 . . 200 . 150 57 Parts Sabotaged . | . . . . . . . . . . . . . . . Parts Stolen . | . . . . . . . . . . . . . . . Parts Stripped . | . . . . . . . . . . . . . . . Power Chain Reactions 13 | . . . . . . . . 5 . 2 1 . 4 1 Missiles Intercepted . | . . . . . . . . . . . . . . . Latent Energy Used 200 | . . . . . . . . . 200 . . . . . LE Corruption 3 | . . . . . . . . . 3 . . . . . Alert | -11 -10 -10 -10 -9 -8 -7 -7 -7 -7 -6 -6 -6 -6 -6 ------- Run | Scr Mat Min Exi Min Mat Fac Low Low Dat Pro Fac Low Low Zio Peak Influence 404 | . 282 13 . . 251 404 . . . . 337 . . . Initial 147 | . . 13 . . . . . . . . 147 . . . Average 160 | . 89 13 . . 104 223 . . . . 210 . . . Maximum Alert Level 2 | . 1 . . . 1 2 . . . . 1 . . . Low Security (%) 63 | 100 93 100 . 100 87 32 . . . . 52 . . . Level 1 33 | . 6 . . . 12 57 . . . . 47 . . . Level 2 3 | . . . . . . 10 . . . . . . . . Level 3 . | . . . . . . . . . . . . . . . Level 4 . | . . . . . . . . . . . . . . . Level 5 . | . . . . . . . . . . . . . . . High Security . | . . . . . . . . . . . . . . . Max Security . | . . . . . . . . . . . . . . . Squads Dispatched 15 | . 5 . . . . 4 . 1 . . 5 . . . Investigation 2 | . 1 . . . . . . . . . 1 . . . Extermination 5 | . . . . . . 3 . . . . 2 . . . Reinforcement 7 | . 4 . . . . 1 . . . . 2 . . . Assault 1 | . . . . . . . . 1 . . . . . . Garrison . | . . . . . . . . . . . . . . . Intercept . | . . . . . . . . . . . . . . . Construction Impeded 2 | . . . . . . 1 . . . . 1 . . . Haulers Reinforced . | . . . . . . . . . . . . . . . Stealth | -11 -10 -10 -10 -9 -8 -7 -7 -7 -7 -6 -6 -6 -6 -6 --------- Run | Scr Mat Min Exi Min Mat Fac Low Low Dat Pro Fac Low Low Zio Distress Signals 5 | . 2 . . . . 3 . . . . . . . . Communications Jammed . | . . . . . . . . . . . . . . . Distress Signals . | . . . . . . . . . . . . . . . Times Spotted 170 | . 28 . . . 11 18 5 29 2 16 12 4 16 29 Peak Tracking Total 10 | . 5 . . . 5 3 3 10 1 4 4 4 4 5 Tactical Retreats 14 | . . . . . . . . 4 . 1 . . 2 7 Traps | -11 -10 -10 -10 -9 -8 -7 -7 -7 -7 -6 -6 -6 -6 -6 ------- Run | Scr Mat Min Exi Min Mat Fac Low Low Dat Pro Fac Low Low Zio Traps Triggered 6 | . 2 . . . . 2 . . . . 2 . . . Indirectly . | . . . . . . . . . . . . . . . Trap Hack Attempts . | . . . . . . . . . . . . . . . Triggered . | . . . . . . . . . . . . . . . Disarmed . | . . . . . . . . . . . . . . . Reprogrammed . | . . . . . . . . . . . . . . . Reused 1 | . . . . . . . . . 1 . . . . . Traps Extracted . | . . . . . . . . . . . . . . . Installed 6 | . . . . . . . . . 6 . . . . . Triggered 6 | . . . . . . . 1 3 . . . . 2 . Machines | -11 -10 -10 -10 -9 -8 -7 -7 -7 -7 -6 -6 -6 -6 -6 ---------- Run | Scr Mat Min Exi Min Mat Fac Low Low Dat Pro Fac Low Low Zio Machines Disabled 9 | . . . . . 1 . . . 1 . 7 . . . Max in Single Turn 6 | . . . . . 1 . . . 1 . 6 . . . Garrison Access 1 | . . . . . 1 . . . . . . . . . Machines Sabotaged . | . . . . . . . . . . . . . . . Garrisons Compromised . | . . . . . . . . . . . . . . . Overloaded Fab Kills . | . . . . . . . . . . . . . . . Fab Network Shutdowns 1 | . . . . . . 1 . . . . . . . . Hacking | -11 -10 -10 -10 -9 -8 -7 -7 -7 -7 -6 -6 -6 -6 -6 --------- Run | Scr Mat Min Exi Min Mat Fac Low Low Dat Pro Fac Low Low Zio Machines Accessed 12 | . 1 . 2 . 1 3 . . 4 . 1 . . . Terminals 3 | . 1 . . . . 1 . . . . 1 . . . Fabricators 1 | . . . . . . 1 . . . . . . . . Repair Stations . | . . . . . . . . . . . . . . . Recycling Units . | . . . . . . . . . . . . . . . Scanalyzers . | . . . . . . . . . . . . . . . Garrison Access 2 | . . . . . 1 1 . . . . . . . . Total Hacks 42 | . 6 . 2 . 1 8 . . 22 . 3 . . . Successful 30 | . 3 . 2 . 1 2 . . 22 . . . . . Failed 12 | . 3 . . . . 6 . . . . 3 . . . Catastrophic 2 | . 1 . . . . 1 . . . . . . . . Database Lockouts . | . . . . . . . . . . . . . . . Manual 13 | . 6 . 1 . . 3 . . . . 3 . . . Terminals 10 | . 6 . . . . 1 . . . . 3 . . . Fabricators 5 | . . . . . . 5 . . . . . . . . Repair Stations . | . . . . . . . . . . . . . . . Recycling Units . | . . . . . . . . . . . . . . . Scanalyzers . | . . . . . . . . . . . . . . . Garrison Access 3 | . . . . . 1 2 . . . . . . . . Terminal Hacks 27 | . 2 . 2 . . 1 . . 22 . . . . . Record 12 | . . . 1 . . . . . 11 . . . . . Part Schematic 3 | . . . . . . . . . 3 . . . . . Robot Schematic 5 | . . . . . . . . . 5 . . . . . Robot Analysis 1 | . 1 . . . . . . . . . . . . . Prototype ID Bank 3 | . . . . . . . . . 3 . . . . . Branch Access Points 1 | . . . . . . 1 . . . . . . . . Zone Layout 1 | . 1 . . . . . . . . . . . . . EX-Prototype ID Bank 1 | . . . 1 . . . . . . . . . . . Fabricator Hacks 1 | . . . . . . 1 . . . . . . . . Build 1 | . . . . . . 1 . . . . . . . . Repair Station Hacks . | . . . . . . . . . . . . . . . Recycling Unit Hacks . | . . . . . . . . . . . . . . . Scanalyzer . | . . . . . . . . . . . . . . . Garrison Access Hacks 1 | . . . . . 1 . . . . . . . . . Seal Access 1 | . . . . . 1 . . . . . . . . . Unauthorized Hacks 1 | . 1 . . . . . . . . . . . . . Terminals 1 | . 1 . . . . . . . . . . . . . Track 1 | . 1 . . . . . . . . . . . . . Fabricators . | . . . . . . . . . . . . . . . Repair Stations . | . . . . . . . . . . . . . . . Recycling Units . | . . . . . . . . . . . . . . . Scanalyzers . | . . . . . . . . . . . . . . . Garrison Access . | . . . . . . . . . . . . . . . Data Cores Recovered . | . . . . . . . . . . . . . . . Used . | . . . . . . . . . . . . . . . Hacking Detections 4 | . 1 . . . . 2 . . . . 1 . . . Full Trace Events 1 | . 1 . . . . . . . . . . . . . Feedback Events . | . . . . . . . . . . . . . . . Feedback Blocked . | . . . . . . . . . . . . . . . Robot Schematics Acquired 5 | . . . . . . . . . 5 . . . . . Robots Built . | . . . . . . . . . . . . . . . Matter . | . . . . . . . . . . . . . . . Time . | . . . . . . . . . . . . . . . Total Robot Build Rating . | . . . . . . . . . . . . . . . Part Schematics Acquired 3 | . . . . . . . . . 3 . . . . . Parts Built 2 | . . . . . . 2 . . . . . . . . Matter 212 | . . . . . . 212 . . . . . . . . Time 106 | . . . . . . 106 . . . . . . . . Total Part Build Rating 12 | . . . . . . 12 . . . . . . . . Parts Repaired . | . . . . . . . . . . . . . . . Time . | . . . . . . . . . . . . . . . Parts Recycled . | . . . . . . . . . . . . . . . Recycled Matter . | . . . . . . . . . . . . . . . Retrieved Matter . | . . . . . . . . . . . . . . . Retrieved Components . | . . . . . . . . . . . . . . . Parts Scanalyzed . | . . . . . . . . . . . . . . . Part Schematics Acquired . | . . . . . . . . . . . . . . . Parts Damaged . | . . . . . . . . . . . . . . . Bothacking | -11 -10 -10 -10 -9 -8 -7 -7 -7 -7 -6 -6 -6 -6 -6 ------------ Run | Scr Mat Min Exi Min Mat Fac Low Low Dat Pro Fac Low Low Zio Used RIF Installer . | . . . . . . . . . . . . . . . Robots Hacked . | . . . . . . . . . . . . . . . Non-combat . | . . . . . . . . . . . . . . . Combat . | . . . . . . . . . . . . . . . Robot Hacks Applied . | . . . . . . . . . . . . . . . Relay Couplers Released . | . . . . . . . . . . . . . . . Robots Rewired 3 | . . . . . . . . 2 . . 1 . . . Allies Hacked . | . . . . . . . . . . . . . . . Hacks Repelled . | . . . . . . . . . . . . . . . Allies | -11 -10 -10 -10 -9 -8 -7 -7 -7 -7 -6 -6 -6 -6 -6 -------- Run | Scr Mat Min Exi Min Mat Fac Low Low Dat Pro Fac Low Low Zio Total Allies 3 | . . . . . . . . 2 . . 1 . . . Largest Group 2 | . . . . . . . . 2 1 . 1 . . . Highest-Rated Group 62 | . . . . . . . . 62 32 . 12 . . . Highest-Rated Ally 32 | . . . . . . . . 32 32 . 12 . . . Total Orders . | . . . . . . . . . . . . . . . Ally Attacks 10 | . . . . . . . . 5 1 . 4 . . . Total Damage 175 | . . . . . . . . 109 18 . 48 . . . Kills 1 | . . . . . . . . 1 . . . . . . Allies Corrupted . | . . . . . . . . . . . . . . . Allies Melted . | . . . . . . . . . . . . . . . Intel | -11 -10 -10 -10 -9 -8 -7 -7 -7 -7 -6 -6 -6 -6 -6 ------- Run | Scr Mat Min Exi Min Mat Fac Low Low Dat Pro Fac Low Low Zio Robot Analysis Total 1 | . 1 . . . . . . . . . . . . . Derelict Logs Recovered 5 | . . . . . . . 2 . . . . 1 1 1 Drone Launches . | . . . . . . . . . . . . . . . Drone Recoveries . | . . . . . . . . . . . . . . . Exploration | -11 -10 -10 -10 -9 -8 -7 -7 -7 -7 -6 -6 -6 -6 -6 ------------- Run | Scr Mat Min Exi Min Mat Fac Low Low Dat Pro Fac Low Low Zio Turns Passed 14798 | 76 1382 193 629 141 971 2001 811 837 261 706 1858 510 884 3538 Spaces Moved 6811 | 43 687 107 348 79 425 880 425 394 135 345 891 276 447 1329 Core 8 | 4 . . . . . . . . . . . . . 4 Treads 6799 | 39 687 107 348 79 425 880 425 394 135 345 891 276 447 1321 Legs 4 | . . . . . . . . . . . . . . 4 Wheels . | . . . . . . . . . . . . . . . Hover . | . . . . . . . . . . . . . . . Flight . | . . . . . . . . . . . . . . . Fastest Speed 50 | 50 160 180 180 180 180 167 167 187 167 185 180 182 182 182 Average Speed 181 | 153 162 180 180 180 182 186 173 187 179 185 181 182 182 187 Slowest Speed 1850 | 160 180 180 180 180 183 187 187 187 187 187 185 182 182 1850 Overloaded Moves . | . . . . . . . . . . . . . . . Propulsion Burnouts . | . . . . . . . . . . . . . . . Robots Hopped . | . . . . . . . . . . . . . . . Cave-ins Triggered . | . . . . . . . . . . . . . . . Exploration Rate (%) 51 | 3 94 32 69 34 34 35 62 53 75 60 28 46 59 82 Regions Visited 14 Branch Regions 10 Pre-discovered Areas 4 | . . . 1 1 . . . . 1 . . . . 1 Known Exits Taken 1 | . . . . . . 1 . . . . . . . . Unknown Exits Taken 13 | 1 1 1 1 1 1 . 1 1 1 1 1 1 1 . Scrap Searched 11 | . . . . . . . 1 1 . 1 . 2 3 3 Spaces Dug 51 | . . . . . 15 . . 4 . . 25 . 6 1 Terrain Destroyed 198 | . . . . . 58 1 1 22 5 11 71 . 27 2 Melee 26 | . . . . . . . . . . . 25 . . 1 Projectile 2 | . . . . . . 1 1 . . . . . . . AOE 170 | . . . . . 58 . . 22 5 11 46 . 27 1 Terrain Rammed . | . . . . . . . . . . . . . . . Walls Destroyed . | . . . . . . . . . . . . . . . Machines Disabled . | . . . . . . . . . . . . . . . Actions | -11 -10 -10 -10 -9 -8 -7 -7 -7 -7 -6 -6 -6 -6 -6 --------- Run | Scr Mat Min Exi Min Mat Fac Low Low Dat Pro Fac Low Low Zio Total 8165 | 50 828 108 351 78 563 1140 455 449 158 381 1033 280 480 1811 Wait 338 | . 42 2 . . 70 169 4 6 . . 42 . 1 2 Move 6797 | 42 686 106 347 78 424 879 424 393 134 344 890 275 446 1329 Hop . | . . . . . . . . . . . . . . . Pick Up 70 | 2 14 . 1 . 12 13 3 3 3 1 8 . 1 9 Fast Attach 28 | 6 10 . . . 4 2 . . . . 3 . . 3 Attach 38 | . 2 . . . 4 5 1 . 4 3 3 . 1 15 Detach 7 | . 1 . . . 3 . . . 1 . . . . 2 Swap 60 | . 5 . 2 . 3 5 2 5 . 6 13 1 5 13 Drop 60 | . 5 . 1 . 11 14 1 1 9 . 11 . 1 6 Fire 342 | . 63 . . . 32 51 20 27 1 27 22 4 25 70 Melee 391 | . . . . . . . . . . . 29 . . 362 Ram . | . . . . . . . . . . . . . . . Kick . | . . . . . . . . . . . . . . . Crush . | . . . . . . . . . . . . . . . Escape Stasis 4 | . . . . . . 2 . . . . 2 . . . Rewire 24 | . . . . . . . . 14 . . 10 . . . Trap 6 | . . . . . . . . . 6 . . . . . Miscellaneous . | . . . . . . . . . . . . . . . Route ------- -11/Scrapyard -10/Materials (discovered 4 exits: [*Mat x3] / [*Min]) -10/Mines (discovered 2 exits: [*Mat] / *Exi) -10/Exiles -9/Mines -8/Materials -7/Factory (discovered 2 exits: *Low x2) -7/Lower Caves -7/Lower Caves -7/Data Miner -6/Proximity Caves -6/Factory -6/Lower Caves -6/Lower Caves -6/Zion (discovered 1 exit: [*Pro]) History --------- Turn | Location | Event 11 | -11/Scrapyard | Discovered new exit (range 15) 77 | -11/Scrapyard | Entered Materials 309 | -10/Materials | Build established: Mutant 513 | -10/Materials | Lost 3 parts (1p2w) 573 | -10/Materials | Discovered new exit (range 12) 1003 | -10/Materials | Discovered new exit (range 13) 1201 | -10/Materials | Discovered new exit (range 16) 1447 | -10/Materials | Discovered new exit (range 8) 1459 | -10/Materials | Entered Mines 1591 | -10/Mines | Discovered new exit (range 5) 1645 | -10/Mines | Deemed a non-threat by the Exiles lab entrance 1645 | -10/Mines | Discovered new exit (range 5) 1652 | -10/Mines | Entered Exiles 1697 | -10/Exiles | Met 8R-AWN 1726 | -10/Exiles | Met EX-HEX 1850 | -10/Exiles | Met EX-DEC 1886 | -10/Exiles | Learned location of Zion (-6) 2010 | -10/Exiles | Met EX-BIN 2035 | -10/Exiles | Aligned with FarCom system 2037 | -10/Exiles | Given EX-Vault access code 2084 | -10/Exiles | Opened EX-Vault 2096 | -10/Exiles | Found Latent Energy Streamer 2103 | -10/Exiles | Build established: Hauler-Mutant 2135 | -10/Exiles | Warned to stay clear of 0b10 Research branches 2158 | -10/Exiles | Exiles lab attacked by MAIN.C 2259 | -10/Exiles | Discovered new exit (range 14) 2281 | -10/Exiles | Left Exiles lab with Latent Energy Streamer 2281 | -10/Exiles | Entered Mines 2405 | -9/Mines | Learned location of Storage (-9) 2415 | -9/Mines | Discovered new exit (range 5) 2422 | -9/Mines | Entered Materials 2422 | -8/Materials | Evolved 4 slots: Propulsion x1, Utility x2, Weapon x1 3267 | -8/Materials | Build established: Hauler-Tank 3320 | -8/Materials | Discovered new exit (range 4) 3393 | -8/Materials | Entered Factory 3393 | -7/Factory | Evolved 2 slots: Propulsion x1, Utility x1 3590 | -7/Factory | Local fabrication network quarantined 3689 | -7/Factory | Fabricated Arm. Medium Treads (x2) 5332 | -7/Factory | Identified exit to Lower Caves 5394 | -7/Factory | Entered Lower Caves 5732 | -7/Lower Caves | Learned Factory garrison access intel 6132 | -7/Lower Caves | Discovered new exit (range 15) 6140 | -7/Lower Caves | Learned Factory stockpile data 6205 | -7/Lower Caves | Entered another Lower Caves area 6344 | -7/Lower Caves | Build established: Hauler-Gunner 6730 | -7/Lower Caves | Encountered a Warlord checkpoint 6885 | -7/Lower Caves | Attracted the attention of an 0b10 outpost 6888 | -7/Lower Caves | Discovered new exit (range 9) 6928 | -7/Lower Caves | Destroyed 9 combat bots 6942 | -7/Lower Caves | Build established: Hauler-Mutant 7042 | -7/Lower Caves | Entered Data Miner 7042 | -7/Data Miner | Accompanied by 1 ally 7042 | -7/Data Miner | Discovered new exit (range 6) 7078 | -7/Data Miner | Met Data Miner 7111 | -7/Data Miner | Learned location of Section 7 (-3) 7111 | -7/Data Miner | Acquired the access code to Warlord's prototype stash 7141 | -7/Data Miner | Received God Mode back door access code from Data Miner 7199 | -7/Data Miner | Data Conduit disabled 7303 | -7/Data Miner | Entered Proximity Caves 7541 | -6/Proximity Caves | Build established: Hauler-Gunner 7765 | -6/Proximity Caves | System corruption reached 10% 7952 | -6/Proximity Caves | Discovered new exit (range 13) 8009 | -6/Proximity Caves | Entered Factory 8009 | -6/Factory | Evolved 2 slots: Power x1, Utility x1 8011 | -6/Factory | Loaded intel: 4 garrison access locations 8395 | -6/Factory | Build established: Scavenger-Tank 9365 | -6/Factory | Build established: Scavenger-Mutant 9801 | -6/Factory | Discovered new exit (range 13) 9804 | -6/Factory | Build established: Scavenger-Tank 9867 | -6/Factory | Entered Lower Caves 10049 | -6/Lower Caves | Encountered a Warlord checkpoint 10190 | -6/Lower Caves | Learned Factory trap positions 10215 | -6/Lower Caves | Build established: Scavenger-Mutant 10363 | -6/Lower Caves | Discovered new exit (range 9) 10377 | -6/Lower Caves | Entered another Lower Caves area 10555 | -6/Lower Caves | Spotted B-75 Beast 10903 | -6/Lower Caves | Destroyed B-75 Beast 11170 | -6/Lower Caves | Learned Factory trap positions 11250 | -6/Lower Caves | Discovered new exit (range 7) 11261 | -6/Lower Caves | Entered Zion 11325 | -6/Zion | System corruption cleaned by Quarantine Array 11363 | -6/Zion | Build established: Scavenger-Tank 11378 | -6/Zion | Discovered new exit (range 12) 11549 | -6/Zion | Learned Factory emergency access door positions 11791 | -6/Zion | Learned 4 Factory zone layouts 12074 | -6/Zion | Learned location of Armory (-3) 12310 | -6/Zion | Build established: Hauler-Mutant 12328 | -6/Zion | Found CR-A16's Pointy Stick 13718 | -6/Zion | Found Relay Coupler [Programmer] 13720 | -6/Zion | Found Relay Coupler [Programmer] 13727 | -6/Zion | Found Relay Coupler [Programmer] 13730 | -6/Zion | Found Relay Coupler [Programmer] 13733 | -6/Zion | Found Relay Coupler [Programmer] 14373 | -6/Zion | Attacked by Zionites 14461 | -6/Zion | Lost 3 parts (1p1n1u) 14583 | -6/Zion | 7V-RTL came to Zion's defense 14706 | -6/Zion | Core integrity fell below 50% 14778 | -6/Zion | Core integrity fell below 20% 14799 | -6/Zion | Destroyed by M3-3YE(z) with Makeshift Laser Last Messages --------------- 14741_ M3-3YE(z) heat damages Mak. Leg. 14741_ M3-3YE(z) overheating. 14747_ Penetrated by Slug. 14747_ Slug penetrates Twisted Machinery. 14751_ Penetrated by Slug. 14751_ Slug penetrates Twisted Machinery. 14751_ Mak. Leg destroyed. 14756_ 6Q-MKH(z) rummages through the Twisted Machinery. 14757_ 4D-VQ1(z) destroyed. 14758_ 6Q-MKH(z) sifts through the Twisted Machinery. 14762_ Slug penetrates Twisted Machinery. 14765_ Hvy. Assault Rifle destroyed. 14768_ Penetrated by Slug. 14777_ Slug penetrates Twisted Machinery. 14777_ Critical hit. 14777_ Mak. Armor Plating destroyed. 14780_ Slug penetrates Twisted Machinery. 14786_ M3-3YE(z) heat short circuits Mak. Leg. 14788_ Acquired 26 matter. 14796_ M3-3YE(z) overheating. Map ----- +----------------------------------------------------+ | ??????????????###"" # ##"""""""""""####??##""" " | | ??????????????#"""""" """" """"""#?#"""" " | | ?????????????## " "" """""###"""" " | | ?????????????#""""" " " ""#?""" " | | ?????????????#"" "" %= """##"" " | | ????????????##"" = """#"#"" | | ????????????#""" " """""""" """ | | ????????????#""" "# "" """"" """ | | ????????????##" """# [ = | | ??????########" """## %! % | | ??????#"##""#"" ""## = " | | ??????#""""#""" """#" = ! | | ??????" X""""" " "# ! """ | | ??????# """" "" | | ?????## "" # "" | | ?????" %* % = """ | | ?????" [ %/ "" | | ###### " % | " | | " """"""" = | | ####""##"### " " =% * | | ???#########"" " * = = | | ?????????#"""" = ##* ;# """#" | | ?????????#"# ! "" """""""" | | ?????????##"" Y # #"##"""""""""""" | | ?????????#"" z ! ###"""""####""" | | ?????????#""""" """/@= %= #"""#?##"###??##"# | | ?????????#"""""""" """ * = #""# #??#????????? | | ?????????#####"##" "" ! ]#""## #??????????? | | ?????????????####" ""#?# #?????????? | | ?????????????####"" =% " "#??# #????????? | | ????????????##"""" "" #???# #???????? | | ????????????#""" " ""####??# #??????? | | ????????????##" #" """"#???# ??????? | | ?????????????#" "##" ""##????? ?????? | | ???????????###"" """# % "#??????? ????? | | ??????????##""""" """#"= ""##???????????? | | ?????????##""" " " """" """#???????????? | | ?????????#""" """ ""###???????????? | | ?????????##" " " ""#?????????????? | | ?????????#"" """" " ""#?????????????? | | ?????????#"" """" " ""##????????????? | | ????????##"" "" " """#????????????? | | ????????#"""" "" """#????????????? | | ????????#"""" "" ""###???????????? | | ??????####"" """ """#????#####??? | | ????###""""" """"" "" """"##???##!/!##?? | | ?#""""""""#"" """#""" "" """#"#???#! / #?? | | ?#" """" """"""" ""##?#?###/ #?? | | """ #"##??##"## [##?? | | """ #""####"""" ###?? | +----------------------------------------------------+ Best States ------------- Heat Dissipation 37 Energy Generation 27 Energy Capacity 480 Matter Stores 300 Matter Capacity 300 Sight Range 16 Terrain Scan Density 10 Armor Coverage 825 Resistance: TH 15 Evasion (%) 40 Target Analysis 5 Armor Integrity Analysis 50 Recoil Reduction 4 Item Schematics ----------------- Combat Drone Bay | -7/Data Miner | Free Lgt. Regenerative Plating | -7/Data Miner | Free Exp. Targeting Computer | -7/Data Miner | Free Robot Schematics ------------------ S-27 Virus | -7/Data Miner | Free G-50 Soldier | -7/Data Miner | Free H-66 Slayer | -7/Data Miner | Free I-36 Angel | -7/Data Miner | Free I-47 Archangel | -7/Data Miner | Free Fabricated ------------ Arm. Medium Treads | x2 | -7/Factory | Preloaded Alien Tech Used ----------------- None Achievements -------------- None Challenges ------------ None Game ------ Seed GravitonSmallPit Manual? 0 Play Time 01:05:54 Cumulative 182.3 hours Start 2021.06.05 @ 08:50:30 End 2021.06.05 @ 10:21:34 Sessions 3 Manual Loads 0 Difficulty Rogue Special Mode None Game No. 227 Rogue 140 Adventurer 87 Explorer 0 Win Type - Total 4 Types 3/0/0/1/0/0/0/0/0 Lore% 65 Gallery% 73 Achievement% 60 Wizard Run 0 Options --------- ASCII 0 Keyboard 1 Movement Numpad Keybinds 0 Fullscreen 1 Font 18/Smallcaps Map View 76x50 Tactical HUD 1 Map Filters NONE Filters NONE Steam 1 RUN: abbfa5cd-f58a-4bff-be03-34f59910f278